fUST/lending_fUST_20240613
["ID","MTS","AMOUNT","RATE_DAILY","PERIOD"]
[329291311,1718219448150,-500.0,0.00016986,2]
[329291312,1718219448160,-946.24,0.00016986,2]
[329291313,1718219448171,-500.0,0.00016986,2]
[329291314,1718219448182,-1737.34,0.00016986,2]
[329291315,1718219448192,-500.0,0.00016986,2]
[329291316,1718219448203,-500.0,0.00016986,2]
[329291317,1718219448214,-632.37,0.00016986,2]
[329291318,1718219448227,-500.0,0.00016986,2]
[329291319,1718219448239,-1464.84,0.00016986,2]
[329291320,1718219448250,-500.0,0.00016986,2]
[329291321,1718219448262,-500.0,0.00016986,2]
[329291322,1718219448281,-500.0,0.00016986,2]
[329291323,1718219448292,-602.9,0.00016986,2]
[329291324,1718219448302,-496.62831701,0.00016986,2]
[329291325,1718219448315,-500.0,0.00016986,2]
[329291326,1718219448326,-500.0,0.00016986,2]
[329291327,1718219448337,-500.0,0.00016986,2]
[329291328,1718219448347,-291.47323671,0.00016986,2]
[329291329,1718219448359,-500.0,0.00016986,2]
[329291330,1718219448370,-1286.96,0.00016986,2]
[329291331,1718219448380,-500.0,0.00016986,2]
[329291332,1718219448391,-747.1,0.00016986,2]
[329291333,1718219448403,-1000.0,0.00017,2]
[329291334,1718219448413,-192.18691291,0.0001716,2]
[329291335,1718219448424,-504.0,0.00017259,2]
[329291336,1718219448434,-500.0,0.00017259,2]
[329291337,1718219448445,-500.0,0.00017259,2]
[329291338,1718219448455,-500.0,0.0001726,2]
[329291339,1718219448466,-500.0,0.0001726,2]
[329291340,1718219448480,-500.0,0.0001726,2]
[329291341,1718219448491,-570.57228022,0.0001726,2]
[329291342,1718219448502,-727.62,0.0001726,2]
[329291343,1718219448532,-500.0,0.0001726,2]
[329291344,1718219448543,-705.79,0.0001726,2]
[329291345,1718219448557,-692.85,0.0001726,2]
[329291346,1718219448569,-500.0,0.0001726,2]
[329291347,1718219448581,-500.0,0.0001726,2]
[329291348,1718219448592,-645.46,0.0001726,2]
[329291349,1718219448603,-500.0,0.0001726,2]
[329291350,1718219448615,-795.72,0.0001726,2]
[329291351,1718219448625,-500.0,0.0001726,2]
[329291352,1718219448637,-528.84,0.0001726,2]
[329291353,1718219448648,-500.0,0.0001726,2]
[329291354,1718219448659,-500.0,0.0001726,2]
[329291355,1718219448670,-500.0,0.0001726,2]
[329291356,1718219448683,-500.0,0.0001726,2]
[329291357,1718219448699,-500.0,0.0001726,2]
[329291358,1718219448710,-500.0,0.0001726,2]
[329291359,1718219448722,-500.0,0.0001726,2]
[329291360,1718219448735,-500.0,0.0001726,2]
[329291361,1718219448746,-500.0,0.0001726,2]
[329291362,1718219448756,-500.0,0.0001726,2]
[329291363,1718219448767,-500.0,0.0001726,2]
[329291364,1718219448778,-500.0,0.0001726,2]
[329291365,1718219448789,-630.02,0.0001726,2]
[329291366,1718219448800,-500.0,0.0001726,2]
[329291367,1718219448810,-724.31,0.0001726,2]
[329291368,1718219448822,-500.0,0.0001726,2]
[329291369,1718219448963,-500.0,0.0001726,2]
[329291370,1718219448978,-501.06,0.0001726,2]
[329291371,1718219448989,-756.88,0.0001726,2]
[329291372,1718219448999,-500.0,0.0001726,2]
[329291373,1718219449010,-500.0,0.0001726,2]
[329291374,1718219449022,-500.0,0.0001726,2]
[329291375,1718219449033,-500.0,0.0001726,2]
[329291376,1718219449044,-500.0,0.0001726,2]
[329291377,1718219449054,-500.0,0.0001726,2]
[329291378,1718219449065,-500.0,0.0001726,2]
[329291379,1718219449076,-500.0,0.0001726,2]
[329291380,1718219449086,-532.27,0.0001726,2]
[329291381,1718219449099,-500.0,0.0001726,2]
[329291382,1718219449110,-500.0,0.0001726,2]
[329291383,1718219449121,-1627.38,0.0001726,2]
[329291384,1718219449132,-500.0,0.0001726,2]
[329291385,1718219449142,-885.33,0.0001726,2]
[329291386,1718219449153,-831.55,0.0001726,2]
[329291387,1718219449164,-4354.42,0.0001726,2]
[329291388,1718219449175,-500.0,0.0001726,2]
[329291389,1718219449187,-889.28,0.0001726,2]
[329291390,1718219449198,-500.0,0.0001726,2]
[329291391,1718219449209,-500.0,0.0001726,2]
[329291392,1718219449220,-500.0,0.0001726,2]
[329291393,1718219449235,-500.0,0.0001726,2]
[329291394,1718219449246,-500.0,0.0001726,2]
[329291395,1718219449257,-500.0,0.0001726,2]
[329291396,1718219449271,-688.26,0.0001726,2]
[329291397,1718219449281,-8021.14,0.0001726,2]
[329291398,1718219449293,-4337.83,0.0001726,2]
[329291399,1718219449306,-500.0,0.0001726,2]
[329291400,1718219449317,-2012.3,0.0001726,2]
[329291401,1718219449327,-500.0,0.0001726,2]
[329291402,1718219449339,-2324.41,0.0001726,2]
[329291403,1718219449349,-726.26,0.0001726,2]
[329291404,1718219449363,-500.0,0.0001726,2]
[329291405,1718219449374,-500.0,0.0001726,2]
[329291406,1718219449385,-364.86641781,0.0001726,2]
[329291407,1718219449396,-500.0,0.0001726,2]
[329291408,1718219449407,-500.0,0.0001726,2]
[329291409,1718219449420,-832.21,0.0001726,2]
[329291410,1718219449430,-500.0,0.0001726,2]
[329291411,1718219449442,-500.0,0.0001726,2]
[329291412,1718219449453,-500.0,0.0001726,2]
[329291413,1718219449464,-1009.09,0.0001726,2]
[329291414,1718219449477,-5284.22,0.0001726,2]
[329291415,1718219449487,-500.0,0.0001726,2]
[329291416,1718219449498,-500.0,0.0001726,2]
[329291417,1718219449523,-500.0,0.0001726,2]
[329291418,1718219449534,-946.24,0.0001726,2]
[329291419,1718219449546,-1737.34,0.0001726,2]
[329291420,1718219449557,-195.35795499,0.0001726,2]
[329291421,1718219449569,-500.0,0.0001726,2]
[329291422,1718219449581,-500.0,0.0001726,2]
[329291423,1718219449592,-632.37,0.0001726,2]
[329291424,1718219449603,-500.0,0.0001726,2]
[329291425,1718219449614,-1464.84,0.0001726,2]
[329291426,1718219449626,-500.0,0.0001726,2]
[329291427,1718219449636,-500.0,0.0001726,2]
[329291428,1718219449648,-500.0,0.0001726,2]
[329291429,1718219449659,-602.9,0.0001726,2]
[329291430,1718219449670,-500.0,0.0001726,2]
[329291431,1718219449682,-500.0,0.0001726,2]
[329291432,1718219449693,-500.0,0.0001726,2]
[329291433,1718219449705,-500.0,0.0001726,2]
[329291434,1718219449717,-1286.96,0.0001726,2]
[329291435,1718219449730,-500.0,0.0001726,2]
[329291436,1718219449740,-747.1,0.0001726,2]
[329291437,1718219449751,-504.0,0.00017502,2]
[329291438,1718219449761,-155.01550155,0.00017532,2]
[329291439,1718219449772,-504.0,0.00017533,2]
[329291440,1718219449783,-500.0,0.00017533,2]
[329291441,1718219449794,-500.0,0.00017533,2]
[329291442,1718219449805,-500.0,0.00017534,2]
[329291443,1718219449816,-500.0,0.00017534,2]
[329291444,1718219449828,-500.0,0.00017534,2]
[329291445,1718219449839,-727.62,0.00017534,2]
[329291446,1718219449850,-500.0,0.00017534,2]
[329291447,1718219449860,-705.79,0.00017534,2]
[329291448,1718219449872,-692.85,0.00017534,2]
[329291449,1718219449882,-500.0,0.00017534,2]
[329291450,1718219449894,-500.0,0.00017534,2]
[329291451,1718219449906,-645.46,0.00017534,2]
[329291452,1718219449917,-500.0,0.00017534,2]
[329291453,1718219449928,-795.72,0.00017534,2]
[329291454,1718219449940,-500.0,0.00017534,2]
[329291455,1718219449951,-528.84,0.00017534,2]
[329291456,1718219449962,-500.0,0.00017534,2]
[329291457,1718219449974,-500.0,0.00017534,2]
[329291458,1718219449985,-352.72339032,0.00017534,2]
[329291459,1718219449996,-500.0,0.00017534,2]
[329291460,1718219450007,-500.0,0.00017534,2]
[329291461,1718219450018,-500.0,0.00017534,2]
[329291462,1718219450029,-500.0,0.00017534,2]
[329291463,1718219450040,-500.0,0.00017534,2]
[329291464,1718219450050,-500.0,0.00017534,2]
[329291465,1718219450060,-500.0,0.00017534,2]
[329291466,1718219450071,-500.0,0.00017534,2]
[329291467,1718219450082,-500.0,0.00017534,2]
[329291468,1718219450092,-630.02,0.00017534,2]
[329291469,1718219450103,-500.0,0.00017534,2]
[329291470,1718219450113,-724.31,0.00017534,2]
[329291471,1718219450124,-500.0,0.00017534,2]
[329291472,1718219450135,-443.12862648,0.00017534,2]
[329291473,1718219450145,-501.06,0.00017534,2]
[329291474,1718219450157,-756.88,0.00017534,2]
[329291475,1718219450167,-500.0,0.00017534,2]
[329291476,1718219450178,-500.0,0.00017534,2]
[329291477,1718219450189,-504.43232428,0.00017534,2]
[329291478,1718219450202,-500.0,0.00017534,2]
[329291479,1718219450212,-500.0,0.00017534,2]
[329291480,1718219450224,-500.0,0.00017534,2]
[329291481,1718219450235,-500.0,0.00017534,2]
[329291482,1718219450247,-532.27,0.00017534,2]
[329291483,1718219450259,-500.0,0.00017534,2]
[329291484,1718219450275,-500.0,0.00017534,2]
[329291485,1718219450286,-1627.38,0.00017534,2]
[329291486,1718219450297,-500.0,0.00017534,2]
[329291487,1718219450309,-885.33,0.00017534,2]
[329291488,1718219450320,-831.55,0.00017534,2]
[329291489,1718219450332,-4354.42,0.00017534,2]
[329291490,1718219450344,-500.0,0.00017534,2]
[329291491,1718219450355,-889.28,0.00017534,2]
[329291492,1718219450366,-500.0,0.00017534,2]
[329291493,1718219450378,-500.0,0.00017534,2]
[329291494,1718219450391,-500.0,0.00017534,2]
[329291495,1718219450405,-505.92399926,0.00017534,2]
[329291496,1718219450417,-500.0,0.00017534,2]
[329291497,1718219450431,-500.0,0.00017534,2]
[329291498,1718219450443,-688.26,0.00017534,2]
[329291499,1718219450454,-8021.14,0.00017534,2]
[329291500,1718219450464,-4337.83,0.00017534,2]
[329291501,1718219450476,-500.0,0.00017534,2]
[329291502,1718219450488,-2012.3,0.00017534,2]
[329291503,1718219450500,-500.0,0.00017534,2]
[329291504,1718219450526,-2324.41,0.00017534,2]
[329291505,1718219450537,-726.26,0.00017534,2]
[329291506,1718219450548,-630.92,0.00017534,2]
[329291507,1718219450559,-500.0,0.00017534,2]
[329291508,1718219450570,-500.0,0.00017534,2]
[329291509,1718219450581,-500.0,0.00017534,2]
[329291510,1718219450592,-832.21,0.00017534,2]
[329291511,1718219450603,-500.0,0.00017534,2]
[329291512,1718219450614,-500.0,0.00017534,2]
[329291513,1718219450625,-500.0,0.00017534,2]
[329291514,1718219450635,-1009.09,0.00017534,2]
[329291515,1718219450646,-5284.22,0.00017534,2]
[329291516,1718219450657,-500.0,0.00017534,2]
[329291517,1718219450667,-556.60536797,0.00017534,2]
[329291518,1718219450677,-500.0,0.00017534,2]
[329291519,1718219450688,-946.24,0.00017534,2]
[329291520,1718219450699,-1737.34,0.00017534,2]
[329291521,1718219450710,-500.0,0.00017534,2]
[329291522,1718219450720,-500.0,0.00017534,2]
[329291523,1718219450732,-632.37,0.00017534,2]
[329291524,1718219450743,-500.0,0.00017534,2]
[329291525,1718219450754,-1464.84,0.00017534,2]
[329291526,1718219450765,-500.0,0.00017534,2]
[329291527,1718219450775,-500.0,0.00017534,2]
[329291528,1718219450786,-500.0,0.00017534,2]
[329291529,1718219450797,-602.9,0.00017534,2]
[329291530,1718219450809,-500.0,0.00017534,2]
[329291531,1718219450820,-500.0,0.00017534,2]
[329291532,1718219450832,-500.0,0.00017534,2]
[329291533,1718219450843,-500.0,0.00017534,2]
[329291534,1718219450855,-1286.96,0.00017534,2]
[329291535,1718219450865,-500.0,0.00017534,2]
[329291536,1718219450876,-747.1,0.00017534,2]
[329291537,1718219450887,-200.2,0.00017629,2]
[329291538,1718219450898,-504.0,0.00017807,2]
[329291539,1718219450909,-523.74872739,0.00017807,2]
[329291540,1718219450920,-500.0,0.00017808,2]
[329291541,1718219450931,-500.0,0.00017808,2]
[329291542,1718219450941,-500.0,0.00017808,2]
[329291543,1718219450952,-727.62,0.00017808,2]
[329291544,1718219450962,-500.0,0.00017808,2]
[329291545,1718219450973,-705.79,0.00017808,2]
[329291546,1718219450987,-692.85,0.00017808,2]
[329291547,1718219450997,-169.13838736,0.00017808,2]
[329291548,1718219451007,-500.0,0.00017808,2]
[329291549,1718219451019,-645.46,0.00017808,2]
[329291550,1718219451030,-500.0,0.00017808,2]
[329291551,1718219451040,-795.72,0.00017808,2]
[329291552,1718219451051,-500.0,0.00017808,2]
[329291553,1718219451063,-528.84,0.00017808,2]
[329291554,1718219451075,-343.71,0.00017808,2]
[329291555,1718219451086,-310.79781902,0.00017808,2]
[329291556,1718219451097,-500.0,0.00017808,2]
[329291557,1718219451107,-393.14439212,0.00017808,2]
[329291558,1718219451118,-366.38058271,0.00017808,2]
[329291559,1718219451130,-500.0,0.00017808,2]
[329291560,1718219451140,-500.0,0.00017808,2]
[329291561,1718219451152,-500.0,0.00017808,2]
[329291562,1718219451164,-500.0,0.00017808,2]
[329291563,1718219451175,-406.59770439,0.00017808,2]
[329291564,1718219451185,-500.0,0.00017808,2]
[329291565,1718219451196,-630.02,0.00017808,2]
[329291566,1718219451207,-556.85168651,0.00017808,2]
[329291567,1718219451218,-724.31,0.00017808,2]
[329291568,1718219451230,-500.0,0.00017808,2]
[329291569,1718219451241,-501.06,0.00017808,2]
[329291570,1718219451252,-756.88,0.00017808,2]
[329291571,1718219451268,-500.0,0.00017808,2]
[329291572,1718219451279,-500.0,0.00017808,2]
[329291573,1718219451290,-500.0,0.00017808,2]
[329291574,1718219451300,-500.0,0.00017808,2]
[329291575,1718219451312,-597.14511368,0.00017808,2]
[329291576,1718219451322,-532.27,0.00017808,2]
[329291577,1718219451333,-500.0,0.00017808,2]
[329291578,1718219451345,-500.0,0.00017808,2]
[329291579,1718219451356,-1627.38,0.00017808,2]
[329291580,1718219451366,-500.0,0.00017808,2]
[329291581,1718219451376,-885.33,0.00017808,2]
[329291582,1718219451387,-831.55,0.00017808,2]
[329291583,1718219451398,-4354.42,0.00017808,2]
[329291584,1718219451408,-500.0,0.00017808,2]
[329291585,1718219451418,-889.28,0.00017808,2]
[329291586,1718219451428,-500.0,0.00017808,2]
[329291587,1718219451439,-500.0,0.00017808,2]
[329291588,1718219451449,-500.0,0.00017808,2]
[329291589,1718219451460,-552.24988696,0.00017808,2]
[329291590,1718219451470,-500.0,0.00017808,2]
[329291591,1718219451482,-688.26,0.00017808,2]
[329291592,1718219451493,-8021.14,0.00017808,2]
[329291593,1718219451510,-4337.83,0.00017808,2]
[329291594,1718219451526,-500.0,0.00017808,2]
[329291595,1718219451539,-2012.3,0.00017808,2]
[329291596,1718219451550,-405.46648514,0.00017808,2]
[329291597,1718219451560,-2324.41,0.00017808,2]
[329291598,1718219451571,-726.26,0.00017808,2]
[329291599,1718219451581,-500.0,0.00017808,2]
[329291600,1718219451591,-500.0,0.00017808,2]
[329291601,1718219451601,-500.0,0.00017808,2]
[329291602,1718219451611,-832.21,0.00017808,2]
[329291603,1718219451621,-500.0,0.00017808,2]
[329291604,1718219451632,-500.0,0.00017808,2]
[329291605,1718219451642,-500.0,0.00017808,2]
[329291606,1718219451652,-1009.09,0.00017808,2]
[329291607,1718219451664,-5284.22,0.00017808,2]
[329291608,1718219451675,-500.0,0.00017808,2]
[329291609,1718219451686,-500.0,0.00017808,2]
[329291610,1718219451696,-946.24,0.00017808,2]
[329291611,1718219451707,-1737.34,0.00017808,2]
[329291612,1718219451718,-500.0,0.00017808,2]
[329291613,1718219451729,-632.37,0.00017808,2]
[329291614,1718219451740,-500.0,0.00017808,2]
[329291615,1718219451751,-1464.84,0.00017808,2]
[329291616,1718219451762,-261.3701492,0.00017808,2]
[329291617,1718219451773,-500.0,0.00017808,2]
[329291618,1718219451783,-500.0,0.00017808,2]
[329291619,1718219451794,-602.9,0.00017808,2]
[329291620,1718219451805,-534.25,0.00017808,2]
[329291621,1718219451816,-332.08217963,0.00017808,2]
[329291622,1718219451827,-500.0,0.00017808,2]
[329291623,1718219451838,-500.0,0.00017808,2]
[329291624,1718219451848,-1286.96,0.00017808,2]
[329291625,1718219451859,-376.21719704,0.00017808,2]
[329291626,1718219451869,-747.1,0.00017808,2]
[329291627,1718219451880,-200.2,0.00017845,2]
[329291628,1718219451891,-160.0,0.00017853,2]
[329291629,1718219451901,-420.0,0.0001797,2]
[329291630,1718219451911,-504.0,0.00017981,2]
[329291631,1718219451922,-192.18691291,0.00017982,2]
[329291632,1718219451933,-476.69963654,0.00018,2]
[329291633,1718219451945,-876.82850055,0.00018,2]
[329291634,1718219451956,-155.00310006,0.00018,2]
[329291635,1718219451966,-2765.44251206,0.00018,2]
[329291636,1718219451979,-1355.61945113,0.00018,2]
[329291637,1718219451990,-1000.0,0.00018,3]
[329291638,1718219452002,-200.2,0.0001806,2]
[329291639,1718219452012,-504.0,0.00018081,2]
[329291640,1718219452022,-500.0,0.00018082,2]
[329291641,1718219452032,-500.0,0.00018082,2]
[329291642,1718219452042,-518.64553828,0.00018082,2]
[329291643,1718219452052,-727.62,0.00018082,2]
[329291644,1718219452063,-568.58636818,0.00018082,2]
[329291645,1718219452074,-705.79,0.00018082,2]
[329291646,1718219452085,-692.85,0.00018082,2]
[329291647,1718219452097,-500.0,0.00018082,2]
[329291648,1718219452107,-645.46,0.00018082,2]
[329291649,1718219452118,-795.72,0.00018082,2]
[329291650,1718219452129,-500.0,0.00018082,2]
[329291651,1718219452140,-528.84,0.00018082,2]
[329291652,1718219452152,-500.0,0.00018082,2]
[329291653,1718219452163,-587.64,0.00018082,2]
[329291654,1718219452174,-500.0,0.00018082,2]
[329291655,1718219452184,-183.3169378,0.00018082,2]
[329291656,1718219452195,-500.0,0.00018082,2]
[329291657,1718219452205,-500.0,0.00018082,2]
[329291658,1718219452216,-630.02,0.00018082,2]
[329291659,1718219452229,-724.31,0.00018082,2]
[329291660,1718219452240,-500.0,0.00018082,2]
[329291661,1718219452252,-501.06,0.00018082,2]
[329291662,1718219452264,-756.88,0.00018082,2]
[329291663,1718219452276,-500.0,0.00018082,2]
[329291664,1718219452287,-500.0,0.00018082,2]
[329291665,1718219452298,-280.54417749,0.00018082,2]
[329291666,1718219452310,-500.0,0.00018082,2]
[329291667,1718219452321,-532.27,0.00018082,2]
[329291668,1718219452331,-467.89,0.00018082,2]
[329291669,1718219452342,-500.0,0.00018082,2]
[329291670,1718219452354,-1627.38,0.00018082,2]
[329291671,1718219452364,-500.0,0.00018082,2]
[329291672,1718219452375,-885.33,0.00018082,2]
[329291673,1718219452385,-831.55,0.00018082,2]
[329291674,1718219452396,-4354.42,0.00018082,2]
[329291675,1718219452522,-500.0,0.00018082,2]
[329291676,1718219452535,-889.28,0.00018082,2]
[329291677,1718219452546,-329.62,0.00018082,2]
[329291678,1718219452557,-500.0,0.00018082,2]
[329291679,1718219452568,-500.0,0.00018082,2]
[329291680,1718219452579,-500.0,0.00018082,2]
[329291681,1718219452589,-688.26,0.00018082,2]
[329291682,1718219452600,-8021.14,0.00018082,2]
[329291683,1718219452611,-4337.83,0.00018082,2]
[329291684,1718219452622,-500.0,0.00018082,2]
[329291685,1718219452632,-2012.3,0.00018082,2]
[329291686,1718219452643,-3200.0,0.00018082,2]
[329291687,1718219452653,-3200.0,0.00018082,2]
[329291688,1718219452665,-3200.0,0.00018082,2]
[329291689,1718219452675,-2327.80927491,0.00018082,2]
[329291690,1718219452686,-2324.41,0.00018082,2]
[329291691,1718219452698,-726.26,0.00018082,2]
[329291692,1718219452710,-500.0,0.00018082,2]
[329291693,1718219452720,-500.0,0.00018082,2]
[329291694,1718219452735,-500.0,0.00018082,2]
[329291695,1718219452745,-832.21,0.00018082,2]
[329291696,1718219452756,-500.0,0.00018082,2]
[329291697,1718219452766,-622.30282589,0.00018082,2]
[329291698,1718219452777,-500.0,0.00018082,2]
[329291699,1718219452789,-1009.09,0.00018082,2]
[329291700,1718219452800,-5284.22,0.00018082,2]
[329291701,1718219452810,-500.0,0.00018082,2]
[329291702,1718219452821,-528.16263812,0.00018082,2]
[329291703,1718219452832,-946.24,0.00018082,2]
[329291704,1718219452844,-1737.34,0.00018082,2]
[329291705,1718219452855,-500.0,0.00018082,2]
[329291706,1718219452867,-632.37,0.00018082,2]
[329291707,1718219452878,-500.0,0.00018082,2]
[329291708,1718219452888,-1464.84,0.00018082,2]
[329291709,1718219452900,-500.0,0.00018082,2]
[329291710,1718219452911,-508.43687794,0.00018082,2]
[329291711,1718219452922,-602.9,0.00018082,2]
[329291712,1718219452933,-500.0,0.00018082,2]
[329291713,1718219452945,-500.0,0.00018082,2]
[329291714,1718219452955,-1286.96,0.00018082,2]
[329291715,1718219452967,-200.2,0.00018276,2]
[329291716,1718219452978,-1750.0,0.00018305,2]
[329291717,1718219452989,-504.0,0.00018355,2]
[329291718,1718219453000,-500.0,0.00018356,2]
[329291719,1718219453011,-578.85,0.00018356,2]
[329291720,1718219453021,-727.62,0.00018356,2]
[329291721,1718219453031,-705.79,0.00018356,2]
[329291722,1718219453042,-692.85,0.00018356,2]
[329291723,1718219453053,-500.0,0.00018356,2]
[329291724,1718219453063,-645.46,0.00018356,2]
[329291725,1718219453074,-795.72,0.00018356,2]
[329291726,1718219453084,-500.0,0.00018356,2]
[329291727,1718219453095,-528.84,0.00018356,2]
[329291728,1718219453106,-500.0,0.00018356,2]
[329291729,1718219453116,-500.0,0.00018356,2]
[329291730,1718219453127,-500.0,0.00018356,2]
[329291731,1718219453140,-500.0,0.00018356,2]
[329291732,1718219453152,-630.02,0.00018356,2]
[329291733,1718219453164,-724.31,0.00018356,2]
[329291734,1718219453175,-500.0,0.00018356,2]
[329291735,1718219453187,-501.06,0.00018356,2]
[329291736,1718219453198,-756.88,0.00018356,2]
[329291737,1718219453210,-500.0,0.00018356,2]
[329291738,1718219453221,-500.0,0.00018356,2]
[329291739,1718219453236,-532.27,0.00018356,2]
[329291740,1718219453247,-500.0,0.00018356,2]
[329291741,1718219453259,-1627.38,0.00018356,2]
[329291742,1718219453275,-624.15009459,0.00018356,2]
[329291743,1718219453287,-885.33,0.00018356,2]
[329291744,1718219453298,-831.55,0.00018356,2]
[329291745,1718219453314,-4354.42,0.00018356,2]
[329291746,1718219453327,-500.0,0.00018356,2]
[329291747,1718219453338,-889.28,0.00018356,2]
[329291748,1718219453354,-500.0,0.00018356,2]
[329291749,1718219453366,-500.0,0.00018356,2]
[329291750,1718219453377,-500.0,0.00018356,2]
[329291751,1718219453389,-688.26,0.00018356,2]
[329291752,1718219453400,-8021.14,0.00018356,2]
[329291753,1718219453413,-4337.83,0.00018356,2]
[329291754,1718219453427,-509.27474299,0.00018356,2]
[329291755,1718219453443,-2012.3,0.00018356,2]
[329291756,1718219453457,-2324.41,0.00018356,2]
[329291757,1718219453469,-726.26,0.00018356,2]
[329291758,1718219453487,-500.0,0.00018356,2]
[329291759,1718219453498,-500.0,0.00018356,2]
[329291760,1718219453523,-500.0,0.00018356,2]
[329291761,1718219453534,-832.21,0.00018356,2]
[329291762,1718219453545,-500.0,0.00018356,2]
[329291763,1718219453556,-500.0,0.00018356,2]
[329291764,1718219453567,-1009.09,0.00018356,2]
[329291765,1718219453579,-5284.22,0.00018356,2]
[329291766,1718219453590,-500.0,0.00018356,2]
[329291767,1718219453602,-946.24,0.00018356,2]
[329291768,1718219453613,-1737.34,0.00018356,2]
[329291769,1718219453624,-500.0,0.00018356,2]
[329291770,1718219453635,-632.37,0.00018356,2]
[329291771,1718219453646,-500.0,0.00018356,2]
[329291772,1718219453656,-1464.84,0.00018356,2]
[329291773,1718219453668,-500.0,0.00018356,2]
[329291774,1718219453679,-602.9,0.00018356,2]
[329291775,1718219453691,-500.0,0.00018356,2]
[329291776,1718219453701,-1286.96,0.00018356,2]
[329291777,1718219453712,-504.0,0.00018438,2]
[329291778,1718219453722,-194.815119,0.00018439,2]
[329291779,1718219453738,-169.424615,0.00018439,2]
[329291780,1718219453748,-233.778143,0.00018439,2]
[329291781,1718219453758,-203.309537,0.00018439,2]
[329291782,1718219453768,-194.815119,0.00018439,2]
[329291783,1718219453778,-169.404171,0.00018439,2]
[329291784,1718219453789,-169.424616,0.00018439,2]
[329291785,1718219453801,-200.2,0.00018491,2]
[329291786,1718219453811,-606.91207968,0.000185,2]
[329291787,1718219453822,-308.7876226,0.00018548,2]
[329291788,1718219453833,-166.666666,0.00018575,2]
[329291789,1718219453844,-504.0,0.00018629,2]
[329291790,1718219453855,-500.0,0.0001863,2]
[329291791,1718219453866,-727.62,0.0001863,2]
[329291792,1718219453877,-705.79,0.0001863,2]
[329291793,1718219453889,-692.85,0.0001863,2]
[329291794,1718219453899,-500.0,0.0001863,2]
[329291795,1718219453910,-645.46,0.0001863,2]
[329291796,1718219453921,-795.72,0.0001863,2]
[329291797,1718219453931,-500.0,0.0001863,2]
[329291798,1718219453943,-528.84,0.0001863,2]
[329291799,1718219453955,-500.0,0.0001863,2]
[329291800,1718219453967,-500.0,0.0001863,2]
[329291801,1718219453980,-500.0,0.0001863,2]
[329291802,1718219453990,-500.0,0.0001863,2]
[329291803,1718219453999,-630.02,0.0001863,2]
[329291804,1718219454009,-724.31,0.0001863,2]
[329291805,1718219454019,-577.60536885,0.0001863,2]
[329291806,1718219454028,-501.06,0.0001863,2]
[329291807,1718219454041,-756.88,0.0001863,2]
[329291808,1718219454050,-500.0,0.0001863,2]
[329291809,1718219454061,-151.0,0.0001863,2]
[329291810,1718219454072,-151.0,0.0001863,2]